bitfinex-derivatives/quotes_BTCF0:USTF0_20250510
["timestamp","ask_amount","ask_price","bid_price","bid_amount"]
[1746915663508,1.35637449,103750.0,103740.0,0.03308778]
[1746915663710,0.1927793,103730.0,103720.0,0.3608]
[1746915664009,0.63181969,103730.0,103720.0,0.5635979]
[1746915664203,0.5742793,103730.0,103720.0,0.5937979]
[1746915664410,0.5742793,103730.0,103720.0,0.69020667]
[1746915664604,0.5742793,103730.0,103720.0,0.72340667]
[1746915665402,0.5742793,103730.0,103720.0,0.72740667]
[1746915666203,0.7402793,103730.0,103720.0,0.72740667]
[1746915666403,0.5312793,103730.0,103720.0,0.73240667]
[1746915667304,0.5312793,103730.0,103720.0,0.74694187]
[1746915670112,0.65031969,103730.0,103720.0,0.74694187]
[1746915670913,0.5312793,103730.0,103720.0,0.74694187]
[1746915672117,0.3652793,103730.0,103720.0,0.74694187]
[1746915673214,0.2552793,103730.0,103720.0,0.74694187]
[1746915674511,0.37431969,103730.0,103720.0,0.74694187]
[1746915674916,0.2552793,103730.0,103720.0,0.74694187]
[1746915675109,0.4212793,103730.0,103720.0,0.74694187]
[1746915675308,0.2285,103730.0,103720.0,0.74694187]
[1746915675517,0.4212793,103730.0,103720.0,0.89598226]
[1746915675819,0.3597793,103730.0,103720.0,0.89598226]
[1746915676221,0.1937793,103730.0,103720.0,0.89598226]
[1746915676606,0.1937793,103730.0,103720.0,0.77694187]
[1746915676811,0.1937793,103730.0,103720.0,0.92598226]
[1746915677126,0.2552793,103730.0,103720.0,0.80694187]
[1746915678814,0.001,103730.0,103720.0,1.32878226]
[1746915679522,0.1937793,103730.0,103720.0,1.60878226]
[1746915680020,0.001,103730.0,103720.0,1.60878226]
[1746915680221,0.1937793,103730.0,103720.0,1.77478226]
[1746915680718,0.1937793,103730.0,103720.0,1.65574187]
[1746915681121,0.1937793,103730.0,103720.0,1.77478226]
[1746915682021,0.1937793,103730.0,103720.0,1.62574187]
[1746915682214,0.2572793,103730.0,103720.0,1.62574187]
[1746915684020,0.5172793,103730.0,103720.0,1.31574187]
[1746915684212,0.5172793,103730.0,103720.0,1.15974187]
[1746915687019,0.5172793,103730.0,103720.0,1.27878226]
[1746915687337,0.1937793,103730.0,103720.0,1.61878226]
[1746915687527,0.001,103730.0,103720.0,1.61878226]
[1746915689126,0.2557521,103750.0,103740.0,0.1927607]
[1746915689320,0.2557521,103750.0,103740.0,1.2694007]
[1746915689525,0.2557521,103750.0,103740.0,1.3308007]
[1746915689834,0.2557521,103750.0,103740.0,1.42720947]
[1746915690529,0.2557521,103750.0,103740.0,1.42820947]
[1746915691434,0.2557521,103750.0,103740.0,1.43020947]
[1746915692735,0.2236307,103760.0,103750.0,0.1927421]
[1746915692932,0.004,103770.0,103760.0,0.1927235]
[1746915693126,0.360505,103770.0,103760.0,0.7070235]
[1746915693327,0.360505,103770.0,103760.0,0.80341368]
[1746915695332,0.361505,103770.0,103760.0,0.80341368]
[1746915696037,0.360505,103770.0,103760.0,0.80341368]
[1746915696338,0.362505,103770.0,103760.0,0.80341368]
[1746915696733,0.360505,103770.0,103760.0,0.80341368]
[1746915700443,0.1678,103770.0,103760.0,0.81341368]
[1746915700625,0.004,103770.0,103760.0,1.24245407]
[1746915700827,0.0638,103780.0,103770.0,0.192705]
[1746915701032,0.0308,103790.0,103780.0,0.1926864]
[1746915701231,0.3946,103790.0,103780.0,0.79532679]
[1746915701429,0.3946,103790.0,103780.0,1.07683982]
[1746915701626,0.104,103800.0,103790.0,0.1926678]
[1746915701831,0.2966493,103800.0,103790.0,0.6858678]
[1746915702035,0.2966493,103800.0,103790.0,0.7186678]
[1746915702236,0.3715493,103800.0,103790.0,0.78222083]
[1746915702739,0.69058969,103800.0,103790.0,0.52715303]
[1746915702924,0.80963008,103800.0,103790.0,0.52715303]
[1746915703128,0.97563008,103800.0,103790.0,0.4308]
[1746915703326,0.7375493,103800.0,103790.0,0.4308]
[1746915703837,0.85658969,103800.0,103790.0,0.6234678]
[1746915704042,0.85858969,103800.0,103790.0,0.6234678]
[1746915704337,0.85958969,103800.0,103790.0,0.4308]
[1746915706232,0.97863008,103800.0,103790.0,0.07]
[1746915706938,0.1926678,103790.0,103780.0,0.56815015]
[1746915707235,0.78720819,103790.0,103780.0,0.4818078]
[1746915707440,0.78720819,103790.0,103780.0,0.6744942]
[1746915708145,0.95320819,103790.0,103780.0,0.4818078]
[1746915708348,0.95320819,103790.0,103780.0,0.38546405]
[1746915710748,0.8341678,103790.0,103780.0,0.38546405]
[1746915710949,0.8341678,103790.0,103780.0,0.37546405]
[1746915711149,0.95320819,103790.0,103780.0,0.37546405]
[1746915714143,0.95320819,103790.0,103780.0,0.38546405]
[1746915714452,0.95320819,103790.0,103780.0,0.41706405]
[1746915715948,0.8341678,103790.0,103780.0,0.60975045]
[1746915716146,0.6681678,103790.0,103780.0,0.70610348]
[1746915716346,0.6681678,103790.0,103780.0,0.73730348]
[1746915717146,0.8341678,103790.0,103780.0,0.73730348]
[1746915717756,0.95320819,103790.0,103780.0,0.51341708]
[1746915718248,0.95320819,103790.0,103780.0,0.70610348]
[1746915718956,0.95320819,103790.0,103780.0,0.02466405]
[1746915719159,0.8341678,103790.0,103780.0,0.02466405]
[1746915719457,0.95320819,103790.0,103780.0,0.05726405]
[1746915720267,0.8341678,103790.0,103780.0,0.24995045]
[1746915720448,0.95320819,103790.0,103780.0,0.24995045]
[1746915720756,0.8341678,103790.0,103780.0,0.24995045]
[1746915720956,0.95320819,103790.0,103780.0,0.24995045]
[1746915721157,0.8341678,103790.0,103780.0,0.24995045]
[1746915721347,0.95320819,103790.0,103780.0,0.24995045]
[1746915721550,0.95320819,103790.0,103780.0,0.05726405]
[1746915722249,0.95320819,103790.0,103780.0,0.24995045]
[1746915722658,0.8341678,103790.0,103780.0,0.24995045]
[1746915722857,0.95320819,103790.0,103780.0,0.05726405]
[1746915723360,0.95320819,103790.0,103780.0,0.24995045]
[1746915723660,0.95320819,103790.0,103780.0,0.05726405]
[1746915723858,0.95320819,103790.0,103780.0,0.02466405]
[1746915724065,0.95320819,103790.0,103780.0,0.01466405]
[1746915724251,0.95320819,103790.0,103770.0,0.7146535]
[1746915724252,0.1926864,103780.0,103770.0,0.7146535]
[1746915724452,0.73652679,103780.0,103770.0,0.7246535]
[1746915724662,0.73652679,103780.0,103770.0,0.82100653]
[1746915724956,0.6174864,103780.0,103770.0,0.82100653]
[1746915725151,0.73652679,103780.0,103770.0,0.82100653]
[1746915725656,0.73652679,103780.0,103770.0,0.82400653]
[1746915726054,0.6174864,103780.0,103770.0,0.82400653]
[1746915726352,0.7834864,103780.0,103770.0,0.82400653]
[1746915730860,0.90252679,103780.0,103770.0,0.82400653]
[1746915731358,0.7834864,103780.0,103770.0,0.82400653]
[1746915731566,0.90252679,103780.0,103770.0,0.72765413]
[1746915731857,0.7834864,103780.0,103770.0,0.72765413]
[1746915732058,0.90252679,103780.0,103770.0,0.72765413]
[1746915733256,0.7834864,103780.0,103770.0,0.72765413]
[1746915733554,0.90252679,103780.0,103770.0,0.72765413]
[1746915737769,0.90252679,103780.0,103770.0,0.72665413]
[1746915738063,0.1927421,103750.0,103740.0,0.50580888]
[1746915738253,0.5527421,103750.0,103740.0,0.78166958]
[1746915738455,0.73438249,103750.0,103740.0,0.8780319]
[1746915738864,0.73438249,103750.0,103740.0,0.6852712]
[1746915739067,0.73438249,103750.0,103740.0,0.55580888]
[1746915739268,0.76638249,103750.0,103740.0,0.19500888]
[1746915739471,0.98181488,103750.0,103740.0,0.19500888]
[1746915739672,0.86277449,103750.0,103740.0,0.19500888]
[1746915740169,1.38957449,103750.0,103740.0,0.19500888]
[1746915740470,1.38957449,103750.0,103740.0,0.14500888]
[1746915740669,1.2705341,103750.0,103740.0,0.14500888]
[1746915740971,1.2705341,103750.0,103730.0,0.03414598]
[1746915740972,0.1927607,103740.0,103730.0,0.03414598]
[1746915741163,0.71360109,103740.0,103730.0,0.04414598]
[1746915741469,0.5945607,103740.0,103730.0,0.81170987]
[1746915741664,0.5945607,103740.0,103730.0,0.75406948]
[1746915742064,0.71360109,103740.0,103730.0,0.49989018]
[1746915742365,1.19344148,103740.0,103730.0,0.01]
[1746915742667,1.53984148,103740.0,103730.0,1e-07]
[1746915742966,0.1927979,103720.0,103710.0,0.00395314]
[1746915743164,1.19863829,103720.0,103710.0,0.01395314]
[1746915743365,1.35725829,103720.0,103710.0,0.01395314]
[1746915743876,0.90003829,103720.0,103710.0,0.01395314]
[1746915744172,0.90103829,103720.0,103710.0,0.05125314]
[1746915744376,0.90103829,103720.0,103710.0,0.07069255]
[1746915745470,1.26183829,103720.0,103710.0,0.07069255]
[1746915745863,1.26183829,103720.0,103710.0,0.03839255]
[1746915746462,1.26183829,103720.0,103710.0,0.02395314]
[1746915746973,1.26183829,103720.0,103710.0,0.01395314]
[1746915747564,1.1427979,103720.0,103710.0,0.01395314]
[1746915747864,1.26183829,103720.0,103710.0,0.01395314]
[1746915748170,1.26183829,103720.0,103710.0,0.04415314]
[1746915749171,1.38087868,103720.0,103710.0,0.01395314]
[1746915749681,1.1427979,103720.0,103710.0,0.01395314]
[1746915749871,1.38087868,103720.0,103710.0,0.01395314]
[1746915751873,0.1928164,103710.0,103700.0,0.04449905]
[1746915752074,0.87469718,103710.0,103700.0,0.04449905]
[1746915752260,0.87469718,103710.0,103700.0,0.01429905]
[1746915752461,0.192835,103700.0,103690.0,0.03284655]
[1746915752659,0.192835,103700.0,103690.0,0.04284655]
[1746915752660,0.72397539,103700.0,103690.0,0.04284655]
[1746915753266,0.88997539,103700.0,103690.0,0.04284655]
[1746915753468,0.88997539,103700.0,103690.0,0.05750853]
[1746915753876,0.89097539,103700.0,103690.0,0.06550853]
[1746915754182,0.89197539,103700.0,103690.0,0.26636213]
[1746915754375,0.89197539,103700.0,103690.0,0.65906213]
[1746915754678,0.518,103700.0,103690.0,0.86549879]
[1746915754977,0.518,103700.0,103690.0,0.89609879]
[1746915755177,0.47104039,103700.0,103690.0,0.89609879]
[1746915755474,0.002,103700.0,103690.0,1.12513918]
[1746915755773,0.7156,103730.0,103720.0,0.1927979]
[1746915755969,0.7156,103730.0,103720.0,0.5935979]
[1746915755970,0.0306,103730.0,103720.0,0.5935979]
[1746915756171,0.2233793,103730.0,103720.0,0.6868979]
[1746915756370,0.37481969,103730.0,103720.0,0.78333456]
[1746915756878,0.37581969,103730.0,103720.0,0.78333456]
[1746915760280,0.18304039,103730.0,103720.0,0.78333456]
[1746915760485,0.37581969,103730.0,103720.0,0.78333456]
[1746915761481,0.34521969,103730.0,103720.0,0.78333456]
[1746915762782,0.0334,103730.0,103720.0,0.78333456]
[1746915762975,0.001,103730.0,103720.0,1.07333456]
[1746915763172,0.001,103730.0,103720.0,1.23933456]
[1746915765085,0.001,103730.0,103720.0,1.44269456]
[1746915765788,0.001,103730.0,103720.0,1.76065495]
[1746915769876,0.1927444,103750.0,103740.0,0.1927607]
[1746915770084,0.5627444,103750.0,103740.0,0.5835607]
[1746915770283,0.5627444,103750.0,103740.0,0.6790607]
[1746915770482,0.6261444,103750.0,103740.0,0.77546947]
[1746915771189,0.6261444,103750.0,103740.0,0.78515055]
[1746915771383,0.6281444,103750.0,103740.0,0.78515055]
[1746915771584,0.6301444,103750.0,103740.0,0.78515055]
[1746915773704,0.4374,103750.0,103740.0,0.78515055]
[1746915774503,0.6301421,103750.0,103740.0,0.78515055]
[1746915774804,0.4071,103750.0,103740.0,0.78515055]
[1746915775009,0.2298421,103750.0,103740.0,1.14595055]
[1746915775303,0.38048249,103750.0,103740.0,1.14595055]
[1746915777905,0.69048249,103750.0,103740.0,0.51920877]
[1746915778110,0.85648249,103750.0,103740.0,0.6155607]
[1746915780000,0.85648249,103750.0,103740.0,0.4228]
[1746915780201,0.85648249,103750.0,103740.0,0.6155607]
[1746915780407,0.85648249,103750.0,103740.0,0.3908]
[1746915780604,1.43271488,103750.0,103740.0,0.03]
[1746915780803,0.1927607,103740.0,103730.0,0.3608]
[1746915781000,0.74380109,103740.0,103730.0,0.3708]
[1746915781208,0.90980109,103740.0,103730.0,0.2027793]
[1746915781406,0.90980109,103740.0,103730.0,0.0421]
[1746915782510,0.90980109,103740.0,103730.0,0.4029]
[1746915783511,0.90980109,103740.0,103730.0,0.5956793]
[1746915784813,0.90980109,103740.0,103730.0,0.4029]
[1746915786212,0.90980109,103740.0,103730.0,0.5956793]
[1746915786818,0.90980109,103740.0,103730.0,0.4029]
[1746915790019,0.90980109,103740.0,103730.0,0.5956793]
[1746915792423,0.7907607,103740.0,103730.0,0.5956793]
[1746915792613,0.90980109,103740.0,103730.0,0.5956793]
[1746915795221,0.90980109,103740.0,103730.0,0.4029]
[1746915797224,0.7907607,103740.0,103730.0,0.5956793]
[1746915797429,0.90980109,103740.0,103730.0,0.5956793]
[1746915798218,0.7907607,103740.0,103730.0,0.5956793]
[1746915798436,0.90980109,103740.0,103730.0,0.5956793]
[1746915798623,0.90980109,103740.0,103730.0,0.6259793]
[1746915800221,0.74380109,103740.0,103730.0,0.6259793]
[1746915801328,0.90980109,103740.0,103730.0,0.6259793]
[1746915802724,0.7907607,103740.0,103730.0,0.6259793]
[1746915802928,0.2278,103740.0,103730.0,0.81327877]
[1746915803124,0.2545607,103740.0,103730.0,0.97927877]
[1746915803925,0.37360109,103740.0,103730.0,0.97927877]
[1746915804230,0.37360109,103740.0,103730.0,0.81327877]
[1746915807929,0.68360109,103740.0,103730.0,0.62049947]
[1746915808132,0.84960109,103740.0,103730.0,0.6859793]
[1746915815640,0.84960109,103740.0,103730.0,0.4932]
[1746915815841,0.84960109,103740.0,103730.0,0.6556793]
[1746915816041,0.84960109,103740.0,103730.0,0.6861793]
[1746915817539,0.96864148,103740.0,103730.0,0.4629]
[1746915817744,0.96864148,103740.0,103730.0,0.4308]
[1746915817943,0.84960109,103740.0,103730.0,0.4308]
[1746915818242,0.96864148,103740.0,103730.0,0.4632]
[1746915820744,0.84960109,103740.0,103730.0,0.4632]
[1746915821044,0.7305607,103740.0,103730.0,0.4632]
[1746915821242,0.84960109,103740.0,103730.0,0.4632]
[1746915821442,0.96864148,103740.0,103730.0,0.4632]
[1746915821647,0.84960109,103740.0,103730.0,0.4632]
[1746915822947,0.84960109,103740.0,103730.0,0.3932]
[1746915824643,0.96864148,103740.0,103730.0,0.3932]
[1746915825848,0.8867942,103740.0,103730.0,0.0324]
[1746915828243,0.1927979,103720.0,103710.0,0.38059126]
[1746915828541,0.6590314,103720.0,103710.0,0.0932]
[1746915828742,0.5660979,103720.0,103710.0,0.0932]
[1746915828947,0.7223314,103720.0,103710.0,0.0932]
[1746915829149,0.8883314,103720.0,103710.0,0.0932]
[1746915829957,0.7320979,103720.0,103710.0,0.0972]
[1746915830135,0.8883314,103720.0,103710.0,0.0972]
[1746915830547,0.8883314,103720.0,103710.0,0.1002]
[1746915831148,0.7320979,103720.0,103710.0,0.1002]
[1746915831350,0.8883314,103720.0,103710.0,0.1002]
[1746915831740,0.85117431,103720.0,103710.0,0.1002]
[1746915832241,0.7320979,103720.0,103710.0,0.1002]
[1746915832443,0.7320979,103720.0,103710.0,0.1316]
[1746915832649,0.85117431,103720.0,103710.0,0.1316]
[1746915835051,0.7320979,103720.0,103710.0,0.1316]
[1746915835347,0.85117431,103720.0,103710.0,0.1316]
[1746915838346,0.85117431,103720.0,103710.0,0.1002]
[1746915840457,0.85117431,103720.0,103710.0,0.461]
[1746915840648,0.85117431,103720.0,103710.0,0.1002]
[1746915845358,0.85117431,103720.0,103710.0,0.1326]
[1746915845661,0.4687979,103720.0,103710.0,0.90171087]
[1746915845851,0.4687979,103720.0,103710.0,0.78263446]
[1746915846155,0.42187431,103720.0,103710.0,0.78263446]
[1746915846361,0.3027979,103720.0,103710.0,0.78263446]
[1746915848062,0.11,103720.0,103710.0,0.90171087]
[1746915848257,0.3027979,103720.0,103710.0,1.07959087]
[1746915848858,0.3027979,103720.0,103710.0,0.96051446]
[1746915849258,0.3027979,103720.0,103710.0,1.12651446]
[1746915849853,0.2727979,103720.0,103710.0,1.19651446]
[1746915855864,0.2727979,103720.0,103710.0,1.27463249]
[1746915856064,0.1927979,103720.0,103710.0,1.55463249]
[1746915857568,0.28461353,103730.0,103720.0,0.1927979]
[1746915857569,0.3028812,103730.0,103720.0,0.1927979]
[1746915857768,0.3028812,103730.0,103720.0,0.7805979]
[1746915858260,0.38099923,103730.0,103720.0,0.87700667]
[1746915858775,0.38099923,103730.0,103720.0,0.87900667]
[1746915859177,0.2409612,103740.0,103730.0,0.1927793]
[1746915859368,0.3702207,103750.0,103740.0,0.1927607]
[1746915859571,0.7402207,103750.0,103740.0,0.6881607]
[1746915859871,0.84863873,103750.0,103740.0,0.78456947]
[1746915860270,0.84863873,103750.0,103740.0,0.59180877]
[1746915860474,0.84863873,103750.0,103740.0,0.0712]
[1746915860973,0.85063873,103750.0,103740.0,0.0712]
[1746915861178,1.01663873,103750.0,103740.0,0.2639607]
[1746915861377,0.9385207,103750.0,103740.0,0.2639607]
[1746915861581,1.01663873,103750.0,103740.0,0.2639607]
[1746915861878,1.01663873,103750.0,103740.0,0.2629607]
[1746915862777,1.01863873,103750.0,103740.0,0.2629607]
[1746915863277,0.9405207,103750.0,103740.0,0.2629607]
[1746915863576,1.01863873,103750.0,103740.0,0.0702]
[1746915864167,0.9405207,103750.0,103740.0,0.2629607]
[1746915864380,1.01863873,103750.0,103740.0,0.2629607]
[1746915864583,1.01863873,103750.0,103740.0,0.2939607]
[1746915864781,1.01863873,103750.0,103740.0,0.6547607]
[1746915865481,0.9405207,103750.0,103740.0,0.6547607]
[1746915865781,1.01863873,103750.0,103740.0,0.6547607]
[1746915866770,1.01863873,103750.0,103740.0,0.6237607]
[1746915867279,1.01863873,103750.0,103740.0,0.5837607]
[1746915867973,1.01863873,103750.0,103740.0,0.391]
[1746915869082,0.9405207,103750.0,103740.0,0.391]
[1746915869283,1.01863873,103750.0,103740.0,0.391]
[1746915870883,0.9405207,103750.0,103740.0,0.391]
[1746915871189,0.1927793,103730.0,103720.0,0.3608]
[1746915871484,0.69901536,103730.0,103720.0,0.05]
[1746915871681,0.76301536,103730.0,103720.0,0.05]
[1746915872282,0.85089733,103730.0,103720.0,0.052]
[1746915872480,0.7727793,103730.0,103720.0,0.052]
[1746915872675,0.85089733,103730.0,103720.0,0.052]
[1746915873079,0.85089733,103730.0,103720.0,0.054]
[1746915873473,0.7727793,103730.0,103720.0,0.054]
[1746915873677,0.85089733,103730.0,103720.0,0.4454]
[1746915874183,0.68489733,103730.0,103720.0,0.4454]
[1746915874480,0.6067793,103730.0,103720.0,0.4454]
[1746915874684,0.68489733,103730.0,103720.0,0.4454]
[1746915877189,0.85089733,103730.0,103720.0,0.4454]
[1746915877890,0.7727793,103730.0,103720.0,0.4454]
[1746915878187,0.68489733,103730.0,103720.0,0.4454]
[1746915879986,0.6067793,103730.0,103720.0,0.4454]
[1746915880291,0.68489733,103730.0,103720.0,0.4454]
[1746915883986,0.6067793,103730.0,103720.0,0.4454]
[1746915884378,0.68489733,103730.0,103720.0,0.4454]
[1746915884992,0.6067793,103730.0,103720.0,0.4454]
[1746915885300,0.68489733,103730.0,103720.0,0.4454]
[1746915885892,0.6067793,103730.0,103720.0,0.4454]
[1746915886089,0.68489733,103730.0,103720.0,0.4772]
[1746915888097,0.85089733,103730.0,103720.0,0.4772]
[1746915889194,0.68489733,103730.0,103720.0,0.4772]
[1746915889995,0.68489733,103730.0,103720.0,0.5078]
[1746915891091,0.68489733,103730.0,103720.0,0.4772]
[1746915891297,0.68489733,103730.0,103720.0,0.4454]
[1746915892193,0.92901536,103730.0,103720.0,0.4454]
[1746915892382,0.1928164,103710.0,103700.0,0.60385286]
[1746915892588,0.5328164,103710.0,103700.0,0.64575286]
[1746915892791,0.67353443,103710.0,103700.0,0.77306163]
[1746915893094,0.5954164,103710.0,103700.0,0.77306163]
[1746915893298,0.67353443,103710.0,103700.0,0.77306163]
[1746915893484,0.67353443,103710.0,103700.0,0.77906163]
[1746915893485,0.2928164,103710.0,103700.0,0.77906163]
[1746915893686,0.102,103710.0,103700.0,0.86217966]
[1746915893889,0.2948164,103710.0,103700.0,0.86217966]
[1746915894300,0.2948164,103710.0,103700.0,1.10217966]
[1746915894596,0.1948164,103710.0,103700.0,1.31001966]
[1746915895097,0.1948164,103710.0,103700.0,1.47601966]
[1746915895489,0.1948164,103710.0,103700.0,1.39790163]
[1746915895691,0.1948164,103710.0,103700.0,1.64393966]
[1746915899101,0.1948164,103710.0,103700.0,1.56582163]
[1746915899297,0.1948164,103710.0,103700.0,1.64393966]
[1746915900003,0.002,103710.0,103700.0,1.64393966]
[1746915900197,0.3066804,103730.0,103720.0,0.1927979]
[1746915900405,0.3066804,103730.0,103720.0,1.06251593]
[1746915900406,0.4767804,103730.0,103720.0,1.06251593]
[1746915900700,0.2409804,103730.0,103720.0,1.34663593]
[1746915901002,0.2409804,103730.0,103720.0,1.34494526]
[1746915901195,0.2409804,103730.0,103720.0,1.51094526]
[1746915901793,0.2739804,103730.0,103720.0,1.51094526]
[1746915901999,0.2739804,103730.0,103720.0,1.51194526]
[1746915902192,0.35209843,103730.0,103720.0,1.34594526]
[1746915902391,0.38469843,103730.0,103720.0,1.34594526]
[1746915902901,0.38469843,103730.0,103720.0,1.34794526]
[1746915903305,0.3386804,103730.0,103720.0,1.34794526]
[1746915903605,0.41679843,103730.0,103720.0,1.34794526]
[1746915904394,0.3386804,103730.0,103720.0,1.34794526]
[1746915904597,0.41679843,103730.0,103720.0,1.34794526]
[1746915905800,0.3386804,103730.0,103720.0,1.34794526]
[1746915908305,0.41679843,103730.0,103720.0,1.34794526]
[1746915910009,0.3386804,103730.0,103720.0,1.34794526]
[1746915910409,0.41679843,103730.0,103720.0,1.34794526]
[1746915911808,0.75679843,103730.0,103720.0,1.09004736]
[1746915912211,0.8446804,103730.0,103720.0,1.09004736]
[1746915912411,0.92279843,103730.0,103720.0,1.09004736]
[1746915915611,0.92279843,103730.0,103720.0,0.92212736]
[1746915915809,0.8446804,103730.0,103720.0,1.11492526]
[1746915916006,0.8446804,103730.0,103720.0,1.17692526]
[1746915916208,0.3065804,103730.0,103720.0,1.23692526]
[1746915916810,0.3065804,103730.0,103720.0,1.31504329]
[1746915917313,0.3065804,103730.0,103720.0,1.23692526]
[1746915917509,0.3065804,103730.0,103720.0,1.31504329]
[1746915917710,0.3065804,103730.0,103720.0,1.23692526]
[1746915918614,0.3065804,103730.0,103720.0,1.17692526]
[1746915920012,0.033,103730.0,103720.0,1.25504329]
[1746915920310,0.1927793,103730.0,103720.0,1.48504329]
[1746915923118,0.2232793,103730.0,103720.0,1.48504329]
[1746915923511,0.2232793,103730.0,103720.0,1.40692526]
[1746915923710,0.2232793,103730.0,103720.0,1.48504329]
[1746915923912,0.2232793,103730.0,103720.0,1.40692526]
[1746915924114,0.2537793,103730.0,103720.0,1.48504329]
[1746915925304,0.2537793,103730.0,103720.0,1.40692526]
[1746915925621,0.2537793,103730.0,103720.0,1.48504329]
[1746915928317,0.2537793,103730.0,103720.0,1.40692526]
[1746915928513,0.2861793,103730.0,103720.0,1.40692526]
[1746915928918,0.36429733,103730.0,103720.0,1.37692526]
[1746915929218,0.85029733,103730.0,103720.0,1.25656526]
[1746915932025,0.7721793,103730.0,103720.0,1.25656526]
[1746915932326,0.85029733,103730.0,103720.0,1.25656526]
[1746915933919,0.85029733,103730.0,103720.0,1.28896526]
[1746915934221,0.7721793,103730.0,103720.0,1.28896526]
[1746915934430,0.85029733,103730.0,103720.0,1.28896526]
[1746915938147,0.85029733,103730.0,103720.0,1.25656526]
[1746915938447,0.85029733,103730.0,103720.0,1.09492526]
[1746915939151,0.68429733,103730.0,103720.0,1.09492526]
[1746915940149,0.85029733,103730.0,103720.0,1.09492526]
[1746915940349,0.85029733,103730.0,103720.0,0.90212736]
[1746915940549,0.85029733,103730.0,103720.0,0.87102736]
[1746915941043,0.92841536,103730.0,103720.0,0.053]
[1746915941234,0.85029733,103730.0,103720.0,0.053]
[1746915945850,0.85029733,103730.0,103720.0,0.4138]
[1746915946150,0.85029733,103730.0,103720.0,0.053]
[1746915947957,1.28921536,103730.0,103720.0,0.053]
[1746915948253,1.38562337,103730.0,103720.0,0.003]
[1746915949352,1.54610337,103730.0,103720.0,0.003]
[1746915950757,1.70894337,103730.0,103720.0,0.003]
[1746915951957,1.47034534,103730.0,103720.0,0.003]
[1746915952156,1.63082534,103730.0,103720.0,0.003]
[1746915952359,1.70894337,103730.0,103720.0,0.003]
[1746915953458,1.61253536,103730.0,103720.0,0.003]
[1746915955556,1.45205536,103730.0,103720.0,0.003]
[1746915956057,1.37393733,103730.0,103720.0,0.003]
[1746915956259,1.37393733,103730.0,103720.0,0.0346]
[1746915963770,0.85029733,103730.0,103720.0,0.0346]
[1746915963968,0.85029733,103730.0,103720.0,0.4674]
[1746915964268,0.68429733,103730.0,103720.0,0.4674]
[1746915965270,0.85029733,103730.0,103720.0,0.4674]
[1746915966169,0.68429733,103730.0,103720.0,0.4674]
[1746915968169,0.6061793,103730.0,103720.0,0.4674]
[1746915968368,0.68429733,103730.0,103720.0,0.4674]
[1746915969474,0.5127793,103730.0,103720.0,0.6601979]
[1746915969671,0.5127793,103730.0,103720.0,0.4674]
[1746915969869,0.62239733,103730.0,103720.0,0.4674]
[1746915971078,0.65469733,103730.0,103720.0,0.4674]
[1746915971376,0.68799733,103730.0,103720.0,0.4674]
[1746915973671,0.76611536,103730.0,103720.0,0.4674]
[1746915973980,1.12691536,103730.0,103720.0,0.003]
[1746915974282,1.29291536,103730.0,103720.0,0.003]
[1746915976583,1.1366793,103730.0,103720.0,0.003]
[1746915976779,1.21479733,103730.0,103720.0,0.003]
[1746915976983,1.21479733,103730.0,103720.0,0.0361]
[1746915979676,1.25575029,103730.0,103720.0,0.0361]
[1746915980188,0.89495029,103730.0,103720.0,0.0361]
[1746915980483,1.25575029,103730.0,103720.0,0.0361]
[1746915981583,0.89495029,103730.0,103720.0,0.0361]
[1746915982271,1.25575029,103730.0,103720.0,0.0361]
[1746915982481,0.89495029,103730.0,103720.0,0.0361]
[1746915982885,0.7758793,103730.0,103720.0,0.0361]
[1746915983077,0.89495029,103730.0,103720.0,0.0361]
[1746915984380,1.25575029,103730.0,103720.0,0.0361]
[1746915985382,1.25575029,103730.0,103720.0,0.003]
[1746915988902,0.89495029,103730.0,103720.0,0.003]
[1746915989091,1.25575029,103730.0,103720.0,0.003]
[1746915989603,1.1366793,103730.0,103720.0,0.003]
[1746915989802,1.25575029,103730.0,103720.0,0.003]
[1746915991302,0.89495029,103730.0,103720.0,0.0359]
[1746915993895,1.25575029,103730.0,103720.0,0.0359]
[1746915994104,0.89495029,103730.0,103720.0,0.0359]
[1746915994403,1.25575029,103730.0,103720.0,0.0359]
[1746915994601,0.89495029,103730.0,103720.0,0.0359]
[1746915996605,1.25575029,103730.0,103720.0,0.0359]
[1746915998396,0.89495029,103730.0,103720.0,0.0359]
[1746915998603,1.1366793,103730.0,103720.0,0.0359]
[1746915998807,1.25575029,103730.0,103720.0,0.0359]
[1746915999203,0.89495029,103730.0,103720.0,0.0359]
[1746915999409,1.25575029,103730.0,103720.0,0.0359]
[1746915999708,1.29296874,103730.0,103720.0,0.0359]
[1746916000310,0.93216874,103730.0,103720.0,0.0359]
[1746916001607,1.29296874,103730.0,103720.0,0.0359]
[1746916002809,0.93216874,103730.0,103720.0,0.0359]
[1746916003016,1.29296874,103730.0,103720.0,0.0359]
[1746916008212,0.9706793,103730.0,103720.0,0.0359]
[1746916008413,1.04882402,103730.0,103720.0,0.0687]
[1746916008910,1.12696874,103730.0,103720.0,0.0687]
[1746916009107,1.04882402,103730.0,103720.0,0.0687]
[1746916009417,1.12696874,103730.0,103720.0,0.0687]
[1746916010414,1.04882402,103730.0,103720.0,0.0687]
[1746916012908,1.04882402,103730.0,103720.0,0.102]
[1746916013318,0.6098793,103730.0,103720.0,0.102]
[1746916013521,0.59092402,103730.0,103720.0,0.4728]
[1746916014108,0.59092402,103730.0,103720.0,0.6388]
[1746916015519,0.62122402,103730.0,103720.0,0.6388]
[1746916016722,0.65352402,103730.0,103720.0,0.6388]
[1746916020125,0.65352402,103730.0,103720.0,0.4728]
[1746916021514,0.5127793,103730.0,103720.0,0.6655979]
[1746916021716,1.0217541,103740.0,103730.0,0.1927793]
[1746916021923,0.5809676,103740.0,103730.0,0.89552402]
[1746916022124,0.5809676,103740.0,103730.0,1.1426193]
[1746916022328,0.5809676,103740.0,103730.0,1.23902807]
[1746916023920,0.5819676,103740.0,103730.0,1.23902807]
[1746916028919,0.66011232,103740.0,103730.0,1.04624877]
[1746916029124,0.72211232,103740.0,103730.0,0.88024877]
[1746916029324,0.72211232,103740.0,103730.0,1.07302807]
[1746916030421,0.6439676,103740.0,103730.0,0.6246]
[1746916030626,0.80025704,103740.0,103730.0,0.8173793]
[1746916030829,0.83095704,103740.0,103730.0,0.8173793]
[1746916031319,0.75281232,103740.0,103730.0,0.8173793]
[1746916037038,0.6746676,103740.0,103730.0,0.8173793]
[1746916037432,0.75281232,103740.0,103730.0,0.8173793]
[1746916044934,0.6746676,103740.0,103730.0,0.8173793]
[1746916045138,0.6746676,103740.0,103730.0,0.91377877]
[1746916045439,0.6439676,103740.0,103730.0,0.91377877]